bitfinex/quotes_BTCUSD_20250115
["timestamp","ask_amount","ask_price","bid_price","bid_amount"]
[1736938538282,0.00273776,97140.0,97139.0,0.0008536]
[1736938547372,0.00950328,97140.0,97139.0,0.0008536]
[1736938549273,0.08880328,97140.0,97139.0,0.0008536]
[1736938549474,0.29401473,97140.0,97139.0,0.0008536]
[1736938550496,0.29301473,97140.0,97139.0,0.0008536]
[1736938550707,0.29701473,97140.0,97139.0,0.0008536]
[1736938551886,0.30738846,97140.0,97139.0,0.0008536]
[1736938555728,0.29701473,97140.0,97139.0,0.0008536]
[1736938565597,0.25011473,97140.0,97139.0,0.0008536]
[1736938572887,0.25011473,97140.0,97139.0,0.0003536]
[1736938573350,0.37734165,97140.0,97139.0,0.0003536]
[1736938573552,0.42684165,97140.0,97139.0,0.0003536]
[1736938573725,0.52684165,97140.0,97139.0,0.0003536]
[1736938574570,0.52584165,97140.0,97139.0,0.0003536]
[1736938574764,0.52884165,97140.0,97139.0,0.0003536]
[1736938575187,0.52284165,97140.0,97139.0,0.0003536]
[1736938575440,0.53184165,97140.0,97139.0,0.0003536]
[1736938575610,0.53584165,97140.0,97139.0,0.0003536]
[1736938577083,0.72095533,97140.0,97139.0,0.0003536]
[1736938578818,0.53584165,97140.0,97139.0,0.0003536]
[1736938579029,0.205947,97112.0,97107.0,0.07531691]
[1736938580491,0.205956,97108.0,97107.0,0.07531691]
[1736938581063,0.00676552,97111.0,97107.0,0.07531691]
[1736938581328,0.00676552,97111.0,97107.0,0.07631691]
[1736938581456,0.21424445,97119.0,97107.0,0.07631691]
[1736938581457,0.00676552,97108.0,97107.0,0.07817051]
[1736938581696,0.00676552,97108.0,97107.0,0.00193009]
[1736938582013,0.00676552,97108.0,97107.0,0.00093009]
[1736938582216,0.29230389,97108.0,97107.0,0.00493009]
[1736938582394,0.29230389,97108.0,97107.0,0.00193009]
[1736938582837,0.29230389,97108.0,97107.0,0.00093009]
[1736938583055,0.29330389,97108.0,97107.0,0.00093009]
[1736938583626,0.30344212,97108.0,97107.0,0.00093009]
[1736938584795,0.30544212,97108.0,97107.0,0.00093009]
[1736938596811,0.29713067,97108.0,97107.0,0.00093009]
[1736938597037,0.30544212,97108.0,97107.0,0.00093009]
[1736938604094,0.30723531,97108.0,97107.0,0.00093009]
[1736938606320,0.34684696,97108.0,97107.0,0.00093009]
[1736938606570,0.30723531,97108.0,97107.0,0.00093009]
[1736938615145,0.43013531,97108.0,97107.0,0.00093009]
[1736938615373,0.54087563,97108.0,97107.0,9e-08]
[1736938616505,0.53987563,97108.0,97107.0,0.00085399]
[1736938616801,0.54187563,97108.0,97107.0,0.00085399]
[1736938617036,0.55087563,97108.0,97107.0,0.00085399]
[1736938617215,0.53787563,97108.0,97107.0,0.00085399]
[1736938617436,0.54287563,97108.0,97107.0,0.00085399]
[1736938618147,0.55187563,97108.0,97107.0,0.00085399]
[1736938618584,0.57021997,97067.0,97061.0,0.0004]
[1736938618792,0.68016689,97067.0,97061.0,0.0004]
[1736938619002,0.68016689,97067.0,97066.0,0.00184172]
[1736938619788,0.68216689,97067.0,97066.0,0.00184172]
[1736938620196,0.69026675,97067.0,97066.0,0.00184172]
[1736938620574,0.70026675,97067.0,97066.0,0.00184172]
[1736938623773,0.69726675,97067.0,97066.0,0.00184172]
[1736938623986,0.69026675,97067.0,97066.0,0.00184172]
[1736938624195,0.38582952,97057.0,97056.0,0.01692992]
[1736938624395,0.49836789,97057.0,97056.0,0.01707874]
[1736938625272,0.50636789,97057.0,97056.0,0.01707874]
[1736938627163,0.51690549,97057.0,97056.0,0.01707874]
[1736938627366,0.51990549,97057.0,97056.0,0.01707874]
[1736938628018,0.51990549,97057.0,97056.0,0.01793294]
[1736938628816,0.52562549,97057.0,97056.0,0.01793294]
[1736938635544,0.52550151,97057.0,97056.0,0.01793294]
[1736938645588,0.52550151,97057.0,97056.0,0.01743294]
[1736938647662,0.51978151,97057.0,97056.0,0.01743294]
[1736938647877,0.52550151,97057.0,97056.0,0.01743294]
[1736938650924,0.52729408,97057.0,97056.0,0.01743294]
[1736938651393,0.52729408,97057.0,97047.0,0.0759]
[1736938651394,0.22104699,97043.0,97042.0,0.0008537]
[1736938651600,0.49827391,97043.0,97042.0,0.0008537]
[1736938651783,0.49827391,97043.0,97042.0,0.00100237]
[1736938652631,0.49927391,97043.0,97042.0,0.00100237]
[1736938652947,0.49827391,97043.0,97042.0,0.00100237]
[1736938653147,0.50327391,97043.0,97042.0,0.00100237]
[1736938653658,0.49827391,97043.0,97042.0,0.00100237]
[1736938653888,0.50427391,97043.0,97042.0,0.00100237]
[1736938654617,0.50627391,97043.0,97042.0,0.00100237]
[1736938654818,0.50427391,97043.0,97042.0,0.00100237]
[1736938655047,0.51455273,97043.0,97042.0,0.00100237]
[1736938655460,0.51655273,97043.0,97042.0,0.00100237]
[1736938655860,0.51455273,97043.0,97042.0,0.00100237]
[1736938656245,0.51755273,97043.0,97042.0,0.00100237]
[1736938656607,0.51155273,97043.0,97042.0,0.00100237]
[1736938657551,0.51555273,97043.0,97042.0,0.00100237]
[1736938657746,0.51855273,97043.0,97042.0,0.00100237]
[1736938657951,0.51155273,97043.0,97042.0,0.00100237]
[1736938658291,0.51955273,97043.0,97042.0,0.00100237]
[1736938658440,0.51655273,97043.0,97042.0,0.00100237]
[1736938658688,0.50855273,97043.0,97042.0,0.00100237]
[1736938658892,0.51755273,97043.0,97042.0,0.00100237]
[1736938659301,0.52055273,97043.0,97042.0,0.00100237]
[1736938660247,0.51155273,97043.0,97042.0,0.00100237]
[1736938660698,0.51755273,97043.0,97042.0,0.00100237]
[1736938660828,0.51255273,97043.0,97042.0,0.00100237]
[1736938661026,0.48827391,97043.0,97042.0,0.07790237]
[1736938661236,0.38004699,97043.0,97042.0,0.07790237]
[1736938661444,0.36273554,97043.0,97042.0,0.07790237]
[1736938661644,0.38304699,97043.0,97042.0,0.07790237]
[1736938662063,0.37104699,97043.0,97042.0,0.07790237]
[1736938662494,0.37404699,97043.0,97042.0,0.07790237]
[1736938663258,0.38204699,97043.0,97042.0,0.07790237]
[1736938663677,0.37104699,97043.0,97042.0,0.07790237]
[1736938663862,0.37804699,97043.0,97042.0,0.07790237]
[1736938664087,0.38104699,97043.0,97042.0,0.07790237]
[1736938681686,0.37404699,97043.0,97042.0,0.07790237]
[1736938681897,0.37304699,97043.0,97042.0,0.07790237]
[1736938683441,0.37604699,97043.0,97042.0,0.07790237]
[1736938683937,0.37304699,97043.0,97042.0,0.07790237]
[1736938685401,0.37308699,97043.0,97042.0,0.07790237]
[1736938718126,0.16699299,97043.0,97042.0,0.07790237]
[1736938718992,0.16699299,97043.0,97042.0,0.16959092]
[1736938718993,0.00204,97043.0,97042.0,0.16959092]
[1736938719462,0.00204,97043.0,97042.0,0.21809092]
[1736938719902,0.00204,97043.0,97042.0,0.12640237]
[1736938720078,0.00204,97043.0,97042.0,0.12743273]
[1736938720281,4e-05,97043.0,97042.0,0.3233482]
[1736938720486,4e-05,97043.0,97042.0,0.32331784]
[1736938720891,4e-05,97043.0,97042.0,0.43665511]
[1736938721109,4e-05,97043.0,97042.0,0.43765511]
[1736938721315,0.00104,97043.0,97042.0,0.43765511]
[1736938721473,0.00104,97043.0,97042.0,0.34596656]
[1736938721677,0.00104,97043.0,97042.0,0.53121902]
[1736938722677,0.00104,97043.0,97042.0,0.34596656]
[1736938725214,0.00104,97043.0,97042.0,0.43867034]
[1736938726034,0.00104,97043.0,97042.0,0.34596656]
[1736938729249,0.00104,97043.0,97042.0,0.76502502]
[1736938729970,4e-05,97043.0,97042.0,0.76402502]
[1736938730415,0.00104,97043.0,97042.0,0.99663547]
[1736938730640,0.00104,97043.0,97042.0,0.99563547]
[1736938731039,0.00204,97043.0,97042.0,0.99663547]
[1736938731247,0.00204,97043.0,97042.0,0.76502502]
[1736938732237,0.00104,97043.0,97042.0,0.76602502]
[1736938732416,0.00104,97043.0,97042.0,0.77202502]
[1736938732616,0.00204,97043.0,97042.0,0.77202502]
[1736938733364,0.00204,97043.0,97042.0,0.57443964]
[1736938746755,0.00204,97043.0,97042.0,0.66612819]
[1736938747142,0.00204,97043.0,97042.0,0.57443964]
[1736938755390,0.00204,97043.0,97042.0,0.66612819]
[1736938755804,0.00204,97043.0,97042.0,0.57443964]
[1736938756008,0.00204,97043.0,97042.0,0.67866656]
[1736938761554,0.00204,97043.0,97042.0,0.77119654]
[1736938762408,0.00204,97043.0,97042.0,0.67866656]
[1736938763232,0.00204,97043.0,97042.0,0.81746153]
[1736938764133,0.00204,97043.0,97042.0,0.67866656]
[1736938765169,0.00204,97043.0,97042.0,0.86372652]
[1736938765371,0.00204,97043.0,97042.0,0.95541507]
[1736938765518,0.00204,97043.0,97042.0,0.86372652]
[1736938766173,0.00204,97043.0,97042.0,0.67866656]
[1736938766519,0.00204,97043.0,97042.0,0.77035511]
[1736938766717,0.00204,97043.0,97042.0,0.67866656]
[1736938770220,0.00204,97043.0,97042.0,0.77035511]
[1736938770722,0.00204,97043.0,97042.0,0.77202502]
[1736938770926,0.00204,97043.0,97042.0,0.80427551]
[1736938773265,0.00179277,97056.0,97049.0,0.09335846]
[1736938773460,0.00179277,97056.0,97055.0,0.206068]
[1736938773669,0.00179277,97056.0,97055.0,0.31029492]
[1736938774225,0.00179277,97056.0,97055.0,0.63599492]
[1736938776363,0.00179277,97056.0,97055.0,0.63899492]
[1736938776564,0.00279277,97056.0,97055.0,0.64399492]
[1736938776794,0.00279277,97056.0,97055.0,0.74822184]
[1736938778492,0.00279277,97056.0,97055.0,0.75868313]
[1736938778893,0.00266876,97056.0,97055.0,0.75868313]
[1736938779097,0.00266876,97056.0,97055.0,0.7791275]
[1736938780263,0.00266876,97056.0,97055.0,0.91827648]
[1736938783296,0.00266876,97056.0,97055.0,0.7791275]
[1736938787448,0.00266876,97056.0,97055.0,0.96465948]
[1736938789622,0.00266876,97056.0,97055.0,0.96551318]
[1736938793708,0.00266876,97056.0,97055.0,0.7799812]
[1736938802202,0.00266876,97056.0,97055.0,1.01042821]
[1736938802806,0.00166876,97056.0,97055.0,1.00242821]
[1736938803641,0.00266876,97056.0,97055.0,0.99123966]
[1736938803997,0.00266876,97056.0,97055.0,0.99423966]
[1736938804195,0.00266876,97056.0,97055.0,1.02641959]
[1736938804401,0.00266876,97056.0,97055.0,1.25833456]
[1736938804993,0.00166876,97056.0,97055.0,1.25333456]
[1736938805187,0.00166876,97056.0,97055.0,1.26233456]
[1736938805395,0.00266876,97056.0,97055.0,1.02741959]
[1736938805580,0.00266876,97056.0,97055.0,1.03041959]
[1736938808646,0.00266876,97056.0,97055.0,0.99823966]
[1736938810896,0.00266876,97056.0,97055.0,1.08992821]
[1736938811096,0.00266876,97056.0,97055.0,0.99823966]
[1736938811759,0.00266876,97056.0,97055.0,0.79217166]
[1736938817120,0.00266876,97056.0,97055.0,0.88386021]
[1736938817327,0.00266876,97056.0,97055.0,0.79217166]
[1736938825101,0.00266876,97056.0,97055.0,0.5779132]
[1736938825681,0.00266876,97056.0,97055.0,0.55746883]
[1736938825957,0.07926876,97056.0,97055.0,0.45324191]
[1736938826118,0.07926876,97056.0,97055.0,0.58160979]
[1736938826903,0.00266876,97056.0,97055.0,0.58160979]
[1736938827107,0.00266876,97056.0,97055.0,0.43978062]
[1736938827515,0.00266876,97056.0,97055.0,0.44178062]
[1736938827999,0.00166876,97056.0,97055.0,0.43078062]
[1736938828219,0.00266876,97056.0,97055.0,0.43878062]
[1736938828423,0.00266876,97056.0,97055.0,0.43278062]
[1736938828624,0.00266876,97056.0,97055.0,0.53700754]
[1736938828822,0.00366876,97056.0,97055.0,0.54300754]
[1736938829428,0.00366876,97056.0,97055.0,0.63469609]
[1736938830015,0.00366876,97056.0,97055.0,0.80455455]
[1736938830431,0.00366876,97056.0,97055.0,0.89797157]
[1736938831099,0.00166876,97056.0,97055.0,0.98166012]
[1736938831463,0.00166876,97056.0,97055.0,0.80055455]
[1736938831866,0.00166876,97056.0,97055.0,0.708866]
[1736938832067,0.00266876,97056.0,97055.0,0.717866]
[1736938832272,0.00266876,97056.0,97055.0,0.80955455]
[1736938832467,0.00266876,97056.0,97055.0,0.717866]
[1736938832706,0.00266876,97056.0,97055.0,0.80955455]
[1736938833144,0.00266876,97056.0,97055.0,0.717866]
[1736938843008,0.00266876,97056.0,97055.0,0.80955455]
[1736938843209,0.00266876,97056.0,97055.0,0.717866]
[1736938844193,0.10336876,97056.0,97055.0,0.0138537]
[1736938844403,0.1100103,97056.0,97055.0,0.0138537]
[1736938844605,0.16652175,97056.0,97055.0,0.0138537]
[1736938845340,0.16552175,97056.0,97055.0,0.0048537]
[1736938845741,0.16552175,97056.0,97055.0,0.0058537]
[1736938845987,0.16552175,97056.0,97055.0,0.0048537]
[1736938846370,0.16552175,97056.0,97055.0,0.0008537]
[1736938847441,0.16652175,97056.0,97055.0,0.0008537]
[1736938847685,0.1663775,97056.0,97055.0,0.0008537]
[1736938847854,0.1693775,97056.0,97055.0,0.0008537]
[1736938848077,0.1683775,97056.0,97055.0,0.0008537]
[1736938848222,0.1693775,97056.0,97055.0,0.0008537]
[1736938848936,0.18252613,97056.0,97055.0,0.0008537]
[1736938849141,0.17952613,97056.0,97055.0,0.0008537]
[1736938849550,0.18252613,97056.0,97055.0,0.0008537]
[1736938850221,0.18152613,97056.0,97055.0,0.0008537]
[1736938850431,0.18252613,97056.0,97055.0,0.0008537]
[1736938850851,0.18152613,97056.0,97055.0,0.0008537]
[1736938851519,0.17652613,97056.0,97055.0,0.0008537]
[1736938851762,0.17952613,97056.0,97055.0,0.0008537]
[1736938851971,0.1683775,97056.0,97055.0,0.0008537]
[1736938852140,0.1713775,97056.0,97055.0,0.0008537]
[1736938853443,0.1723775,97056.0,97055.0,0.0008537]
[1736938856816,0.11753596,97056.0,97055.0,0.0008537]
[1736938857034,0.11653596,97056.0,97055.0,0.0008537]
[1736938857210,0.11753596,97056.0,97055.0,0.0008537]
[1736938857366,0.11153596,97056.0,97055.0,0.0008537]
[1736938857777,0.11353596,97056.0,97055.0,0.0008537]
[1736938858179,0.11453596,97056.0,97055.0,0.0008537]
[1736938858390,0.11653596,97056.0,97055.0,0.0008537]
[1736938860007,0.1231775,97056.0,97055.0,0.0008537]
[1736938860632,0.1171775,97056.0,97055.0,0.0008537]
[1736938861093,0.1201775,97056.0,97055.0,0.0008537]
[1736938864665,0.43732731,97056.0,97055.0,0.0008537]
[1736938865080,0.44304731,97056.0,97055.0,0.0008537]
[1736938866299,0.44204731,97056.0,97055.0,0.0008537]
[1736938866449,0.44604731,97056.0,97055.0,0.0008537]
[1736938866868,0.44204731,97056.0,97055.0,0.0008537]
[1736938867251,0.43082442,97056.0,97055.0,0.0008537]
[1736938867449,0.41679297,97056.0,97055.0,0.09254225]
[1736938867649,0.43410442,97056.0,97055.0,0.0018537]
[1736938867849,0.41679297,97056.0,97055.0,0.09254225]
[1736938868411,0.43410442,97056.0,97055.0,0.0018537]
[1736938868606,0.42579297,97056.0,97055.0,0.09354225]
[1736938869086,0.41679297,97056.0,97055.0,0.09254225]
[1736938869467,0.41279297,97056.0,97055.0,0.09254225]
[1736938869683,0.41679297,97056.0,97055.0,0.09254225]
[1736938869905,0.42510442,97056.0,97055.0,0.0008537]
[1736938870108,0.42110442,97056.0,97055.0,0.0008537]
[1736938870538,0.42910442,97056.0,97055.0,0.0018537]
[1736938870939,0.42310442,97056.0,97055.0,0.0008537]
[1736938871135,0.42810442,97056.0,97055.0,0.0018537]
[1736938876608,0.37840442,97056.0,97055.0,0.0018537]
[1736938876815,0.37009297,97056.0,97055.0,0.09354225]
[1736938877153,0.37840442,97056.0,97055.0,0.0018537]
[1736938881734,0.37009297,97056.0,97055.0,0.09354225]
[1736938882545,0.37840442,97056.0,97055.0,0.0018537]
[1736938882748,0.37009297,97056.0,97055.0,0.09354225]
[1736938882950,0.37840442,97056.0,97055.0,0.0018537]
[1736938890995,0.30070442,97056.0,97055.0,0.0018537]
[1736938907107,0.48573603,97056.0,97055.0,0.0018537]
[1736938908113,0.53199394,97056.0,97055.0,0.0018537]
[1736938912392,0.30070442,97056.0,97055.0,0.0018537]
[1736938914244,0.38050442,97056.0,97055.0,0.0018537]
[1736938918987,0.00664154,97037.0,97029.0,0.03620965]
[1736938919190,0.00831145,97031.0,97029.0,0.03620965]
[1736938919399,0.023,97030.0,97029.0,0.03620965]
[1736938919809,0.00831145,97030.0,97029.0,0.03620965]
[1736938920217,0.00831145,97030.0,97029.0,0.03720965]
[1736938920570,0.00831145,97030.0,97029.0,0.04872062]
[1736938920868,0.00831145,97030.0,97029.0,0.05272062]
[1736938921072,0.00831145,97030.0,97029.0,0.13062062]
[1736938921344,0.00831145,97030.0,97029.0,0.12298741]
[1736938921550,0.00931145,97030.0,97029.0,0.12798741]
[1736938921962,0.00918744,97030.0,97029.0,0.12798741]
[1736938922368,0.00918744,97030.0,97029.0,0.12998741]
[1736938922873,0.00818744,97030.0,97029.0,0.12498741]
[1736938923219,0.00818744,97030.0,97029.0,0.12798741]
[1736938923439,0.00818744,97030.0,97029.0,0.12498741]
[1736938923639,0.00818744,97030.0,97029.0,0.12998741]
[1736938923840,0.00918744,97030.0,97029.0,0.12998741]
[1736938924097,0.00818744,97030.0,97029.0,0.12298741]
[1736938924296,0.00818744,97030.0,97029.0,0.12598741]
[1736938924642,0.00818744,97030.0,97029.0,0.12298741]
[1736938925351,0.00818744,97030.0,97029.0,0.12398741]
[1736938926237,0.00918744,97030.0,97029.0,0.12898741]
[1736938926446,0.023,97036.0,97029.0,0.12898741]
[1736938926447,0.03118744,97036.0,97029.0,0.12398741]
[1736938926669,0.00818744,97030.0,97029.0,0.11247644]
[1736938926832,0.00818744,97030.0,97029.0,0.11547644]
[1736938927055,0.00818744,97030.0,97029.0,0.11247644]
[1736938927250,0.00818744,97030.0,97029.0,0.11147644]
[1736938927451,0.00918744,97030.0,97029.0,0.11647644]
[1736938927661,0.00918744,97030.0,97029.0,0.11147644]
[1736938927797,0.00818744,97030.0,97029.0,0.11147644]
[1736938928001,0.00818744,97030.0,97029.0,0.11233034]
[1736938928406,0.00998063,97030.0,97029.0,0.11433034]
[1736938929046,0.00998063,97030.0,97029.0,0.11733034]
[1736938929254,0.00998063,97030.0,97029.0,0.11433034]
[1736938929631,0.01098063,97030.0,97029.0,0.11933034]
[1736938929827,0.00998063,97030.0,97029.0,0.11233034]
[1736938930029,0.00998063,97030.0,97029.0,0.11333034]
[1736938930589,0.00998063,97030.0,97029.0,0.12466337]
[1736938931427,0.00998063,97030.0,97029.0,0.12766337]
[1736938931629,0.00998063,97030.0,97029.0,0.12666337]
[1736938931838,0.00998063,97030.0,97029.0,0.12866337]
[1736938932008,0.00179319,97030.0,97029.0,0.12866337]
[1736938932218,0.02479319,97030.0,97029.0,0.22047593]
[1736938932473,0.02479319,97030.0,97029.0,0.11533034]
[1736938932707,0.02479319,97030.0,97029.0,0.11333034]
[1736938932847,0.02579319,97030.0,97029.0,0.2101429]
[1736938933034,0.02579319,97030.0,97029.0,0.11833034]
[1736938933233,0.02579319,97030.0,97029.0,0.11333034]
[1736938933440,0.02579319,97030.0,97029.0,0.11633034]
[1736938933704,0.02479319,97030.0,97029.0,0.11633034]
[1736938934243,0.02579319,97030.0,97029.0,0.12133034]
[1736938934447,0.02579319,97030.0,97029.0,0.12546337]
[1736938934578,0.02579319,97030.0,97029.0,0.12846337]
[1736938934780,0.03398063,97030.0,97029.0,0.12746337]
[1736938935211,0.03398063,97030.0,97029.0,0.12946337]
[1736938935423,0.03398063,97030.0,97029.0,0.11733034]
[1736938935594,0.03398063,97030.0,97029.0,0.11533034]
[1736938935972,0.03298063,97030.0,97029.0,0.11333034]
[1736938936278,0.03298063,97030.0,97029.0,0.11633034]
[1736938936491,0.03298063,97030.0,97029.0,0.11233034]
[1736938936823,0.03298063,97030.0,97029.0,0.11533034]
[1736938937037,0.03298063,97030.0,97029.0,0.11633034]
[1736938937636,0.03298063,97030.0,97029.0,0.11333034]
[1736938938044,0.03298063,97030.0,97029.0,0.11633034]
[1736938938249,0.03298063,97030.0,97029.0,0.11533034]
[1736938938631,0.03298063,97030.0,97029.0,0.11633034]
[1736938939056,0.03298063,97030.0,97029.0,0.11533034]
[1736938939258,0.03298063,97030.0,97029.0,0.11233034]
[1736938939441,0.03298063,97030.0,97029.0,0.11333034]
[1736938939645,0.03298063,97030.0,97029.0,0.11633034]
[1736938940086,0.03298063,97030.0,97029.0,0.11233034]
[1736938940322,0.03298063,97030.0,97029.0,0.11533034]
[1736938940648,0.03298063,97030.0,97029.0,0.11233034]
[1736938940894,0.03298063,97030.0,97029.0,0.11433034]
[1736938941605,0.03298063,97030.0,97029.0,0.11533034]
[1736938941998,0.03298063,97030.0,97029.0,0.11433034]
[1736938942348,0.03298063,97030.0,97029.0,0.11533034]
[1736938942974,0.03298063,97030.0,97029.0,0.11233034]
[1736938943148,0.03298063,97030.0,97029.0,0.11333034]
[1736938943591,0.03298063,97030.0,97029.0,0.11533034]
[1736938944516,0.03298063,97030.0,97029.0,0.11433034]
[1736938944741,0.03298063,97030.0,97029.0,0.12576337]
[1736938944944,0.02479319,97030.0,97029.0,0.21857593]
[1736938945149,0.03962217,97030.0,97029.0,0.0038539]
[1736938945354,0.29384909,97030.0,97029.0,0.0038539]
[1736938946239,0.29384909,97030.0,97029.0,0.0028539]
[1736938947171,0.29384909,97030.0,97029.0,0.0008539]
[1736938947497,0.29384909,97030.0,97029.0,0.0018539]
[1736938947700,0.29384909,97030.0,97029.0,0.0008539]
[1736938948175,0.29484909,97030.0,97029.0,0.0008539]
[1736938948789,0.29584909,97030.0,97029.0,0.0008539]
[1736938951360,0.29384909,97030.0,97029.0,0.0008539]
[1736938951775,0.38761502,97030.0,97029.0,0.0008539]
[1736938952015,0.38661502,97030.0,97029.0,0.0008539]
[1736938952338,0.2833881,97030.0,97029.0,0.0008539]
[1736938952494,0.19066217,97030.0,97029.0,0.0008539]
[1736938953627,0.18966217,97030.0,97029.0,0.0008539]
[1736938953909,0.19066217,97030.0,97029.0,0.0008539]
[1736938954448,0.19166217,97030.0,97029.0,0.0008539]
[1736938957740,0.18966217,97030.0,97029.0,0.0008539]
[1736938958191,0.19066217,97030.0,97029.0,0.0008539]
[1736938960851,0.18966217,97030.0,97029.0,0.0008539]
[1736938961320,0.19066217,97030.0,97029.0,0.0008539]
[1736938962849,0.29488909,97030.0,97029.0,0.0008539]
[1736938963215,0.19066217,97030.0,97029.0,0.0008539]
[1736938963830,0.18247473,97030.0,97029.0,0.09266646]
[1736938964059,0.18966217,97030.0,97029.0,0.0008539]
[1736938964262,0.19066217,97030.0,97029.0,0.0008539]
[1736938967551,0.2190167,97030.0,97029.0,0.0008539]
[1736938968264,0.19066217,97030.0,97029.0,0.0008539]
[1736938973259,0.18966217,97030.0,97029.0,0.0008539]
[1736938973592,0.19066217,97030.0,97029.0,0.0008539]
[1736938974445,0.18966217,97030.0,97029.0,0.0008539]
[1736938974629,0.18247473,97030.0,97029.0,0.09266646]
[1736938974836,0.19066217,97030.0,97029.0,0.0008539]
[1736938976926,0.18966217,97030.0,97029.0,0.0008539]
[1736938977312,0.19066217,97030.0,97029.0,0.0008539]
[1736938979903,0.18966217,97030.0,97029.0,0.0008539]
[1736938980221,0.19066217,97030.0,97029.0,0.0008539]
[1736938981052,0.18966217,97030.0,97029.0,0.0008539]
[1736938981453,0.19066217,97030.0,97029.0,0.0008539]
[1736938982188,0.18966217,97030.0,97029.0,0.0008539]
[1736938983782,0.19066217,97030.0,97029.0,0.0008539]
[1736938983953,0.19166217,97030.0,97029.0,0.0008539]
[1736938984454,0.19266217,97030.0,97029.0,0.0008539]
[1736938984689,0.2824281,97030.0,97029.0,0.0008539]
[1736938985017,0.2834281,97030.0,97029.0,0.0008539]
[1736938985229,0.2824281,97030.0,97029.0,0.0008539]
[1736938985659,0.2834281,97030.0,97029.0,0.0008539]
[1736938986786,0.19066217,97030.0,97029.0,0.0008539]
[1736938987004,0.18302063,97030.0,97029.0,0.0008539]
[1736938987196,0.18402063,97030.0,97029.0,0.0008539]
[1736938987404,0.17683319,97030.0,97029.0,0.09266646]
[1736938987560,0.17583319,97030.0,97029.0,0.09266646]
[1736938987770,0.17683319,97030.0,97029.0,0.09266646]
[1736938988403,0.17583319,97030.0,97029.0,0.09266646]
[1736938988602,0.17483319,97030.0,97029.0,0.09266646]
[1736938989009,0.18402063,97030.0,97029.0,0.0008539]
[1736938989592,0.17583319,97030.0,97029.0,0.09266646]
[1736938989795,0.18402063,97030.0,97029.0,0.0008539]
[1736938990227,0.18302063,97030.0,97029.0,0.0008539]
[1736938990398,0.18502063,97030.0,97029.0,0.0008539]
[1736938991201,0.17683319,97030.0,97029.0,0.09266646]
[1736938991376,0.17483319,97030.0,97029.0,0.09266646]
[1736938991601,0.18402063,97030.0,97029.0,0.0008539]
[1736938991804,0.17583319,97030.0,97029.0,0.09266646]
[1736938992572,0.17683319,97030.0,97029.0,0.09266646]
[1736938993347,0.17783319,97030.0,97029.0,0.09266646]
[1736938993563,0.17583319,97030.0,97029.0,0.09266646]
[1736938993908,0.17683319,97030.0,97029.0,0.09266646]
[1736938994112,0.17583319,97030.0,97029.0,0.09266646]
[1736938994608,0.17683319,97030.0,97029.0,0.09266646]
[1736938994809,0.17483319,97030.0,97029.0,0.09266646]
[1736938995024,0.17583319,97030.0,97029.0,0.09266646]
[1736938995323,0.17683319,97030.0,97029.0,0.09266646]
[1736938996277,0.17583319,97030.0,97029.0,0.09266646]
[1736938997233,0.18402063,97030.0,97029.0,0.0008539]
[1736938997436,0.17483319,97030.0,97029.0,0.09266646]
[1736938997790,0.18302063,97030.0,97029.0,0.0008539]
[1736938997992,0.17483319,97030.0,97029.0,0.09266646]
[1736938999016,0.18302063,97030.0,97029.0,0.0008539]
[1736939000670,0.17483319,97030.0,97029.0,0.09266646]
[1736939000890,0.18302063,97030.0,97029.0,0.0008539]
[1736939001274,0.17483319,97030.0,97029.0,0.09266646]
[1736939001607,0.18302063,97030.0,97029.0,0.0008539]
[1736939001857,0.17483319,97030.0,97029.0,0.09266646]
[1736939002067,0.17483319,97030.0,97029.0,0.10554185]
[1736939002287,0.17483319,97030.0,97029.0,0.09266646]
[1736939003122,0.18302063,97030.0,97029.0,0.0008539]
[1736939003247,0.17483319,97030.0,97029.0,0.0008539]
[1736939003454,0.17483319,97030.0,97029.0,0.09266646]
[1736939003656,0.18302063,97030.0,97029.0,0.0008539]
[1736939005295,0.18302063,97030.0,97029.0,0.01372929]
[1736939006433,0.18302063,97030.0,97029.0,0.0008539]
[1736939006660,0.17483319,97030.0,97029.0,0.0008539]
[1736939007249,0.18302063,97030.0,97029.0,0.0008539]
[1736939008646,0.17483319,97030.0,97029.0,0.0008539]
[1736939009074,0.02483319,97030.0,97029.0,0.0008539]
[1736939009368,0.02483319,97030.0,97029.0,0.01372929]
[1736939014599,0.03302063,97030.0,97029.0,0.01372929]
[1736939015598,0.02483319,97030.0,97029.0,0.01372929]
[1736939016843,0.00183319,97030.0,97029.0,0.0008539]
[1736939021720,0.00183319,97030.0,97029.0,0.0018539]
[1736939022617,0.00183319,97030.0,97029.0,0.0038539]
[1736939023375,0.00183319,97030.0,97029.0,0.0008539]
[1736939024377,0.00183319,97030.0,97029.0,0.0018539]
[1736939024578,0.00183319,97030.0,97029.0,0.0038539]
[1736939024787,0.00183319,97030.0,97029.0,0.04939929]
[1736939026316,0.02483319,97030.0,97029.0,0.0038539]
[1736939029071,0.00183319,97030.0,97029.0,0.0038539]
[1736939030274,0.00183319,97030.0,97029.0,0.74055184]
[1736939030419,0.00183319,97030.0,97029.0,0.64873928]
[1736939030624,0.00183319,97030.0,97029.0,0.68094532]
[1736939031051,0.00183319,97030.0,97029.0,0.74803985]
[1736939031256,0.00183319,97030.0,97029.0,0.71583381]
[1736939032367,0.00183319,97030.0,97029.0,0.71383381]
[1736939032563,0.00183319,97030.0,97029.0,0.71483381]
[1736939032769,0.00283319,97030.0,97029.0,0.72283381]
[1736939033170,0.00283319,97030.0,97029.0,0.72183381]
[1736939033563,0.00283319,97030.0,97029.0,0.72483381]
[1736939034974,0.00283319,97030.0,97029.0,0.74510653]
[1736939039823,0.00283319,97030.0,97029.0,0.65174807]
[1736939043316,0.00283319,97030.0,97029.0,0.63147535]
[1736939043541,0.00283319,97030.0,97029.0,0.58507535]
[1736939044557,0.00283319,97030.0,97029.0,0.3375539]
[1736939044952,0.10223319,97030.0,97029.0,0.3375539]
[1736939045592,0.10887473,97030.0,97029.0,0.0118539]
[1736939045777,0.11706217,97030.0,97029.0,0.0088539]
[1736939045992,0.11606217,97030.0,97029.0,0.0008539]
[1736939046560,0.38190703,97030.0,97029.0,0.0008539]
[1736939046964,0.38190703,97030.0,97029.0,0.0018539]
[1736939048689,0.38190703,97030.0,97029.0,0.0008539]
[1736939048892,0.48048823,97030.0,97029.0,0.0008539]
[1736939049292,0.47448823,97030.0,97029.0,0.0008539]
[1736939049523,0.48148823,97030.0,97029.0,0.0018539]
[1736939049727,0.48448823,97030.0,97029.0,0.0018539]
[1736939050003,0.48448823,97030.0,97029.0,0.0008539]
[1736939050168,0.39290703,97030.0,97029.0,0.0008539]
[1736939050709,0.39490703,97030.0,97029.0,0.0008539]
[1736939052184,0.38390703,97030.0,97029.0,0.0008539]
[1736939052618,0.39090703,97030.0,97029.0,0.0018539]
[1736939052789,0.38390703,97030.0,97029.0,0.0008539]
[1736939053193,0.38790703,97030.0,97029.0,0.0008539]
[1736939053732,0.37628909,97030.0,97029.0,0.0008539]
[1736939054318,0.37428909,97030.0,97029.0,0.0008539]
[1736939055294,0.37028909,97030.0,97029.0,0.0008539]